fUSD/lending_fUSD_20240403
["ID","MTS","AMOUNT","RATE_DAILY","PERIOD"]
[321391598,1712115041901,-500.0,0.00054196,30]
[321391599,1712115041912,-150.0,0.00054199,7]
[321391600,1712115041923,-29370.0,0.00054215,120]
[321391601,1712115041934,-150.0,0.00054217,7]
[321391602,1712115041944,-153.53105328,0.00054223,60]
[321391603,1712115041955,-150.0,0.00054226,7]
[321391604,1712115041966,-873.03515097,0.00054227,30]
[321391605,1712115041976,-150.0,0.00054233,7]
[321391606,1712115041987,-150.0,0.00054235,7]
[321391607,1712115041998,-150.0,0.00054235,7]
[321391608,1712115042008,-150.0,0.00054243,7]
[321391609,1712115042018,-150.0,0.00054243,7]
[321391610,1712115042027,-150.0,0.00054245,7]
[321391611,1712115042037,-152.65,0.00054247,30]
[321391612,1712115042047,-150.0,0.00054247,30]
[321391613,1712115042058,-150.0,0.00054247,30]
[321391614,1712115042068,-150.0,0.00054247,30]
[321391615,1712115042078,-150.0,0.00054247,30]
[321391616,1712115042087,-595.0,0.00054247,120]
[321391617,1712115042098,-553.0,0.00054247,120]
[321391618,1712115042108,-538.0,0.00054247,120]
[321391619,1712115042118,-150.0,0.00054261,7]
[321391620,1712115042128,-150.0,0.00054267,7]
[321391621,1712115042139,-150.0,0.00054281,7]
[321391622,1712115042150,-1008.88,0.00054285,2]
[321391623,1712115042159,-150.0,0.00054293,7]
[321391624,1712115042170,-102639.5980949,0.000543,2]
[321391625,1712115042182,-150.0,0.00054304,7]
[321391626,1712115042194,-300.0,0.00054317,7]
[321391627,1712115042205,-153.64559786,0.00054317,60]
[321391628,1712115042216,-200.0,0.00054319,30]
[321391629,1712115042228,-800.0,0.00054319,30]
[321391630,1712115042239,-500.0,0.00054319,30]
[321391631,1712115042250,-150.0,0.00054324,7]
[321391632,1712115042262,-150.0,0.00054333,7]
[321391633,1712115042273,-151.42,0.00054338,2]
[321391634,1712115042284,-576.79002236,0.00054345,60]
[321391635,1712115042293,-150.0,0.00054347,7]
[321391636,1712115042302,-154.12212371,0.00054357,60]
[321391637,1712115042312,-300.0,0.0005436,7]
[321391638,1712115042321,-153.53105328,0.00054362,60]
[321391639,1712115042332,-150.0,0.00054364,7]
[321391640,1712115042342,-150.0,0.00054366,7]
[321391641,1712115042360,-150.0,0.00054369,7]
[321391642,1712115042373,-500.0,0.0005438,30]
[321391643,1712115042384,-150.0,0.00054381,7]
[321391644,1712115042394,-150.0,0.00054389,7]
[321391645,1712115042404,-150.0,0.00054395,7]
[321391646,1712115042414,-329.42189758,0.00054397,7]
[321391647,1712115042424,-517.35580509,0.000544,110]
[321391648,1712115042434,-150.0,0.00054402,7]
[321391649,1712115042444,-294.24541701,0.00054404,60]
[321391650,1712115042454,-183.76006558,0.00054404,60]
[321391651,1712115042464,-150.0,0.00054407,7]
[321391652,1712115042474,-150.0,0.00054408,7]
[321391653,1712115042487,-300.0,0.00054408,7]
[321391654,1712115042497,-1500.0,0.00054412,7]
[321391655,1712115042507,-150.0,0.00054415,7]
[321391656,1712115042517,-150.0,0.0005442,7]
[321391657,1712115042526,-150.0,0.00054425,7]
[321391658,1712115042536,-1500.0,0.00054438,7]
[321391659,1712115042547,-150.0,0.00054439,7]
[321391661,1712115042556,-150.0,0.00054441,7]
[321391662,1712115042566,-500.0,0.00054442,30]
[321391663,1712115042575,-150.0,0.00054442,7]
[321391665,1712115042584,-546.949658,0.00054443,30]
[321391667,1712115042594,-1508.365286,0.00054443,30]
[321391668,1712115042603,-150.0,0.00054446,7]
[321391670,1712115042613,-576.79002236,0.00054452,60]
[321391671,1712115042622,-150.0,0.00054454,7]
[321391672,1712115042631,-183.76006558,0.00054459,60]
[321391673,1712115042641,-150.0,0.00054463,7]
[321391674,1712115042650,-150.0,0.00054464,7]
[321391675,1712115042660,-153.40691446,0.00054464,60]
[321391676,1712115042669,-572.89,0.00054466,120]
[321391677,1712115042678,-4000.0,0.0005448,30]
[321391678,1712115042687,-150.0,0.00054486,7]
[321391679,1712115042697,-1500.0,0.00054488,7]
[321391680,1712115042706,-171673.9600731,0.0005449,15]
[321391681,1712115042716,-1500.0,0.0005449,7]
[321391682,1712115042725,-150.0,0.00054491,7]
[321391683,1712115042737,-576.79002236,0.00054493,60]
[321391684,1712115042746,-500.0,0.00054496,90]
[321391685,1712115042755,-6338.84604415,0.000545,120]
[321391686,1712115042764,-878.0,0.000545,103]
[321391687,1712115042774,-150.0,0.000545,11]
[321391688,1712115042787,-1500.0,0.00054501,7]
[321391689,1712115042798,-500.0,0.00054503,30]
[321391690,1712115042808,-150.0,0.00054505,7]
[321391691,1712115042818,-165.43521577,0.00054511,3]
[321391692,1712115042828,-3427.6941845,0.00054516,4]
[321391693,1712115042839,-150.0,0.00054517,7]
[321391694,1712115042849,-595.0,0.0005452,120]
[321391695,1712115042859,-538.0,0.0005452,120]
[321391696,1712115042869,-153.40691446,0.0005452,60]
[321391697,1712115042879,-1500.0,0.00054525,7]
[321391698,1712115042889,-326.96749214,0.00054534,7]
[321391699,1712115042899,-1500.0,0.00054537,7]
[321391700,1712115042909,-2000.0,0.0005454,15]
[321391701,1712115042919,-200.0,0.0005454,15]
[321391702,1712115042929,-200.0,0.0005454,15]
[321391703,1712115042938,-1500.0,0.0005454,7]
[321391704,1712115043204,-150.0,0.00054543,7]
[321391705,1712115043244,-1699.0,0.00054543,7]
[321391706,1712115043255,-150.0,0.00054546,7]
[321391707,1712115043265,-1500.0,0.00054546,7]
[321391708,1712115043274,-150.0,0.00054551,7]
[321391709,1712115043283,-300.0,0.00054552,7]
[321391710,1712115043293,-1500.0,0.00054555,7]
[321391711,1712115043302,-150.0,0.00054558,7]
[321391712,1712115043312,-380.06,0.0005456,2]
[321391713,1712115043321,-150.0,0.00054561,7]
[321391714,1712115043332,-500.0,0.00054565,30]
[321391715,1712115043342,-150.0,0.00054573,7]
[321391716,1712115043352,-153.40691446,0.00054574,60]
[321391717,1712115043361,-151.0,0.00054575,120]
[321391718,1712115043371,-150.0,0.00054578,7]
[321391719,1712115043380,-339.2424,0.00054582,7]
[321391720,1712115043389,-150.0,0.00054583,7]
[321391721,1712115043399,-150.0,0.00054583,7]
[321391722,1712115043408,-1356.24635684,0.00054584,30]
[321391723,1712115043418,-6234.02755256,0.00054584,2]
[321391724,1712115043427,-1500.0,0.00054589,7]
[321391725,1712115043437,-1500.0,0.00054595,7]
[321391726,1712115043446,-150.0,0.00054596,7]
[321391727,1712115043455,-1500.0,0.00054598,7]
[321391728,1712115043466,-300.0,0.000546,7]
[321391729,1712115043475,-150.0,0.00054605,7]
[321391730,1712115043486,-1500.0,0.00054612,7]
[321391731,1712115043495,-1500.0,0.00054615,7]
[321391732,1712115043506,-1500.0,0.00054621,7]
[321391733,1712115043516,-1500.0,0.00054621,7]
[321391734,1712115043526,-150.0,0.00054626,7]
[321391735,1712115043536,-1500.0,0.00054626,7]
[321391736,1712115043545,-200.0,0.00054627,30]
[321391737,1712115043554,-800.0,0.00054627,30]
[321391738,1712115043564,-500.0,0.00054627,30]
[321391739,1712115043574,-150.0,0.0005463,7]
[321391740,1712115043583,-150.0,0.00054631,7]
[321391741,1712115043593,-150.0,0.00054636,7]
[321391742,1712115043602,-150.0,0.00054638,7]
[321391743,1712115043612,-150.0,0.0005464,7]
[321391744,1712115043621,-150.0,0.00054644,7]
[321391745,1712115043630,-1500.0,0.00054646,7]
[321391746,1712115043640,-150.0,0.00054649,7]
[321391747,1712115043649,-1500.0,0.00054654,7]
[321391748,1712115043659,-150.0,0.00054656,7]
[321391749,1712115043668,-150.0,0.00054657,7]
[321391750,1712115043677,-150.0,0.00054659,7]
[321391751,1712115043687,-150.0,0.00054661,7]
[321391752,1712115043697,-1500.0,0.00054662,7]
[321391753,1712115043706,-150.0,0.00054667,7]
[321391754,1712115043716,-169.34,0.0005467,15]
[321391755,1712115043725,-172.09,0.0005467,15]
[321391756,1712115043736,-150.0,0.00054673,7]
[321391757,1712115043745,-300.0,0.00054674,7]
[321391758,1712115043754,-150.0,0.00054675,7]
[321391759,1712115043764,-150.5,0.0005468,15]
[321391760,1712115043773,-150.5,0.0005468,15]
[321391761,1712115043782,-300.0,0.0005468,7]
[321391762,1712115043792,-69527.3649844,0.0005468,2]
[321391763,1712115043801,-150.0,0.00054683,7]
[321391764,1712115043810,-52969.62654875,0.00054684,120]
[321391765,1712115043819,-983.9622081,0.00054684,2]
[321391766,1712115043829,-864.7279248,0.00054684,2]
[321391767,1712115043838,-576.79002236,0.00054684,60]
[321391768,1712115043848,-160392.0,0.00054685,7]
[321391769,1712115043858,-10415.06202819,0.00054686,5]
[321391770,1712115043867,-17992.97523925,0.00054686,2]
[321391771,1712115043877,-839.03450068,0.00054686,2]
[321391772,1712115043886,-511.7250841,0.00054686,90]
[321391773,1712115043895,-34576.41118954,0.00054686,11]
[321391774,1712115043905,-150.0,0.00054689,14]
[321391775,1712115043914,-1567.78697909,0.0005469,120]
[321391776,1712115043939,-322253.94985111,0.0005469,120]
[321391777,1712115044574,-278.54500003,0.00037875,2]
[321391778,1712115044586,-948.45499997,0.00037875,2]
[321391779,1712115044595,-348.0,0.00040875,2]
[321391780,1712115044604,-3108.5803459,0.0005469,120]
[321391781,1712115044616,-1205.67043756,0.0005469,120]
[321391782,1712115044911,-205531.72652632,0.0005469,120]
[321391783,1712115044945,-435.661,0.0005469,120]
[321391784,1712115045859,-1668.99124741,0.00044741,2]
[321391785,1712115045869,-150.0,0.00053527,7]
[321391786,1712115045879,-150.0,0.00053553,7]
[321391787,1712115045887,-150.0,0.00053561,7]
[321391788,1712115045897,-150.0,0.00053579,7]
[321391789,1712115045906,-150.0,0.00053598,7]
[321391790,1712115045914,-150.0,0.00053687,7]
[321391791,1712115045924,-150.0,0.00053689,7]
[321391792,1712115045933,-150.0,0.00053737,7]
[321391793,1712115045942,-150.0,0.00053742,7]
[321391794,1712115045951,-150.0,0.00053745,7]
[321391795,1712115045960,-150.0,0.00053759,7]
[321391796,1712115045969,-150.0,0.00053772,7]
[321391797,1712115045978,-150.0,0.00053824,7]
[321391798,1712115045988,-150.0,0.00053871,7]
[321391799,1712115045997,-150.0,0.00053992,7]
[321391800,1712115046006,-150.0,0.0005401,7]
[321391801,1712115046015,-150.0,0.00054026,7]
[321391802,1712115046024,-150.0,0.00054027,7]
[321391803,1712115046034,-150.0,0.00054126,7]
[321391804,1712115046043,-150.0,0.00054133,7]
[321391805,1712115046052,-150.0,0.00054178,7]
[321391806,1712115046061,-150.0,0.00054205,7]
[321391807,1712115046070,-150.0,0.00054221,7]
[321391808,1712115046080,-150.0,0.00054283,7]
[321391809,1712115046089,-150.0,0.00054286,7]
[321391810,1712115046098,-150.0,0.00054373,7]
[321391811,1712115046107,-150.0,0.00054463,7]
[321391812,1712115046117,-150.0,0.00054547,7]
[321391813,1712115046126,-150.0,0.00054567,7]
[321391814,1712115046135,-150.0,0.00054571,7]
[321391815,1712115046145,-150.0,0.00054663,7]
[321391816,1712115046154,-465896.62486002,0.0005469,120]
[321391817,1712115046163,-150.5,0.0005469,15]
[321391818,1712115046173,-150.5,0.0005469,15]
[321391819,1712115046186,-154.12212371,0.0005469,60]
[321391820,1712115046195,-150.0,0.00054696,7]
[321391821,1712115046204,-1500.0,0.00054697,7]
[321391822,1712115046214,-300.0,0.00054698,7]
[321391823,1712115046223,-1008.9058,0.00054699,30]
[321391824,1712115046235,-177.72,0.000547,7]
[321391825,1712115046244,-1500.0,0.00054706,7]
[321391826,1712115046253,-150.0,0.00054708,7]
[321391827,1712115046265,-150.0,0.00054708,7]
[321391828,1712115046275,-150.0,0.00054717,7]
[321391829,1712115046285,-150.0,0.00054727,7]
[321391830,1712115046295,-150.0,0.00054733,7]
[321391831,1712115046304,-150.0,0.00054738,7]
[321391832,1712115046314,-150.0,0.00054752,7]
[321391833,1712115046323,-150.0,0.00054755,7]
[321391834,1712115046332,-150.0,0.00054757,7]
[321391835,1712115046342,-1500.0,0.00054757,7]
[321391836,1712115046352,-150.0,0.00054757,7]
[321391837,1712115046362,-150.0,0.00054765,7]
[321391838,1712115046372,-150.0,0.00054767,7]
[321391839,1712115046382,-154.35503135,0.00054773,60]
[321391840,1712115046391,-150.0,0.00054779,7]
[321391841,1712115046401,-150.0,0.0005478,7]
[321391842,1712115046411,-300.0,0.00054787,7]
[321391843,1712115046422,-300.0,0.00054788,7]
[321391844,1712115046431,-3318.47236987,0.00054792,4]
[321391845,1712115046441,-150.0,0.00054792,60]
[321391846,1712115046451,-1111.10692061,0.00054792,30]
[321391847,1712115046461,-240934.12204239,0.00054793,7]
[321391848,1712115046471,-480523.83312875,0.00054793,7]
[321391849,1712115046482,-1111.10692061,0.00054794,30]
[321391850,1712115046491,-500.0,0.00054794,30]
[321391851,1712115046501,-500.0,0.00054794,5]
[321391852,1712115046510,-1122.49,0.00054794,120]
[321391853,1712115046520,-305.00542584,0.00054794,120]
[321391854,1712115046529,-595.0,0.00054794,120]
[321391855,1712115046539,-500.0,0.00054794,30]
[321391856,1712115046550,-500.0,0.00054794,5]
[321391857,1712115046559,-501.26944844,0.00054794,120]
[321391858,1712115046569,-319.32486256,0.00054794,120]
[321391859,1712115046579,-500.0,0.00054794,120]
[321391860,1712115046588,-500.0,0.00054794,120]
[321391861,1712115046598,-500.0,0.00054794,120]
[321391862,1712115046607,-586.40450723,0.00054794,120]
[321391863,1712115046616,-500.0,0.00054794,120]
[321391864,1712115046626,-270.96926816,0.00054794,120]
[321391865,1712115046635,-507.29051724,0.00054794,120]
[321391866,1712115046645,-502.55254958,0.00054794,120]
[321391867,1712115046654,-504.65911007,0.00054794,120]
[321391868,1712115046663,-503.01782539,0.00054794,120]
[321391869,1712115046673,-507.74730445,0.00054794,120]
[321391870,1712115046682,-500.0,0.00054794,120]
[321391871,1712115046691,-320.20099778,0.00054794,2]
[321391872,1712115046700,-500.0,0.00054794,120]
[321391873,1712115046709,-445.56769938,0.00054794,120]
[321391874,1712115046719,-200.0,0.00054794,10]
[321391875,1712115046729,-500.0,0.00054794,2]
[321391876,1712115046739,-435.16965693,0.00054794,2]
[321391877,1712115046748,-500.0,0.00054794,120]
[321391878,1712115046757,-500.0,0.00054794,2]
[321391879,1712115046766,-500.0,0.00054794,120]
[321391880,1712115046776,-500.0,0.00054794,120]
[321391881,1712115046785,-500.0,0.00054794,120]
[321391882,1712115046794,-500.0,0.00054794,120]
[321391883,1712115046803,-500.0,0.00054794,120]
[321391884,1712115046812,-500.0,0.00054794,120]
[321391885,1712115046822,-500.0,0.00054794,120]
[321391886,1712115046831,-500.0,0.00054794,120]
[321391887,1712115046840,-517.34665033,0.00054794,120]
[321391888,1712115046850,-500.0,0.00054794,120]
[321391889,1712115046859,-1000.0,0.00054794,30]
[321391890,1712115046868,-500.0,0.00054794,120]
[321391891,1712115046878,-500.0,0.00054794,120]
[321391892,1712115046889,-500.0,0.00054794,120]
[321391893,1712115046898,-610.012936,0.00054794,120]
[321391894,1712115046907,-500.0,0.00054794,120]
[321391895,1712115046916,-500.0,0.00054794,120]
[321391896,1712115046925,-500.0,0.00054794,120]
[321391897,1712115046934,-500.0,0.00054794,120]
[321391898,1712115046943,-500.0,0.00054794,120]
[321391899,1712115046952,-516.47532811,0.00054794,120]
[321391900,1712115046962,-500.0,0.00054794,120]
[321391901,1712115046971,-500.0,0.00054794,120]
[321391902,1712115046980,-503.00777923,0.00054794,2]
[321391903,1712115046990,-236.21054229,0.00054794,120]
[321391904,1712115047001,-500.0,0.00054794,120]
[321391905,1712115047010,-500.0,0.00054794,120]
[321391906,1712115047023,-500.0,0.00054794,120]
[321391907,1712115047032,-500.0,0.00054794,120]
[321391908,1712115047042,-500.0,0.00054794,120]
[321391909,1712115047051,-199.24359166,0.00054794,120]
[321391910,1712115047060,-500.0,0.00054794,120]
[321391911,1712115047069,-500.0,0.00054794,120]
[321391912,1712115047078,-500.0,0.00054794,120]
[321391913,1712115047089,-572.02,0.00054794,120]
[321391914,1712115047098,-500.0,0.00054794,120]
[321391915,1712115047108,-500.0,0.00054794,120]
[321391916,1712115047117,-500.0,0.00054794,120]
[321391917,1712115047127,-500.0,0.00054794,120]
[321391918,1712115047136,-500.0,0.00054794,120]
[321391919,1712115047146,-500.0,0.00054794,120]
[321391920,1712115047155,-500.0,0.00054794,15]
[321391921,1712115047166,-507.9552467,0.00054794,120]
[321391922,1712115047180,-500.0,0.00054794,120]
[321391923,1712115047190,-500.0,0.00054794,120]
[321391924,1712115047200,-500.0,0.00054794,120]
[321391925,1712115047210,-519.53869411,0.00054794,120]
[321391926,1712115047222,-500.0,0.00054794,120]
[321391927,1712115047231,-2312.13,0.00054794,120]
[321391928,1712115047242,-500.0,0.00054794,120]
[321391929,1712115047252,-191.75093427,0.00054794,120]
[321391930,1712115047263,-500.0,0.00054794,120]
[321391931,1712115047274,-500.0,0.00054794,120]
[321391932,1712115047285,-500.0,0.00054794,120]
[321391933,1712115047295,-561.37,0.00054794,120]
[321391934,1712115047305,-500.0,0.00054794,120]
[321391935,1712115047316,-500.0,0.00054794,120]
[321391937,1712115047326,-500.0,0.00054794,120]
[321391940,1712115047336,-500.0,0.00054794,120]
[321391942,1712115047346,-366.90867943,0.00054794,120]
[321391945,1712115047365,-133.09132057,0.00054794,120]
[321391946,1712115047375,-500.0,0.00054794,120]
[321391947,1712115047384,-359.75239871,0.00054794,120]
[321391952,1712115047468,-150.0,0.00054,7]
[321391954,1712115047479,-150.0,0.00054562,7]
[321391956,1712115047490,-140.24760129,0.00054794,120]
[321391958,1712115047499,-500.0,0.00054794,120]
[321391961,1712115047509,-500.0,0.00054794,120]
[321391964,1712115047519,-503.33735693,0.00054794,120]
[321391967,1712115047529,-500.0,0.00054794,120]
[321391970,1712115047539,-500.0,0.00054794,120]
[321391973,1712115047549,-500.0,0.00054794,120]
[321391975,1712115047559,-500.0,0.00054794,120]
[321391977,1712115047568,-500.0,0.00054794,120]
[321391979,1712115047578,-500.0,0.00054794,120]
[321391981,1712115047589,-500.0,0.00054794,120]
[321391983,1712115047599,-500.0,0.00054794,120]
[321391986,1712115047610,-500.0,0.00054794,120]
[321391988,1712115047620,-500.0,0.00054794,120]
[321391989,1712115047629,-500.0,0.00054794,120]
[321391990,1712115047639,-500.0,0.00054794,120]
[321391991,1712115047650,-500.0,0.00054794,120]
[321391992,1712115047659,-3000.0,0.00054794,120]
[321391993,1712115047668,-500.0,0.00054794,120]
[321391994,1712115047678,-500.0,0.00054794,120]
[321391995,1712115047688,-500.0,0.00054794,120]
[321391996,1712115047698,-500.0,0.00054794,120]
[321391997,1712115047707,-500.0,0.00054794,120]
[321391998,1712115047717,-500.0,0.00054794,120]
[321391999,1712115047726,-511.8287045,0.00054794,120]
[321392000,1712115047739,-500.0,0.00054794,120]
[321392001,1712115047749,-888.0,0.00054794,120]
[321392002,1712115047759,-264.73884125,0.00054794,120]
[321392003,1712115047770,-500.0,0.00054794,120]
[321392004,1712115047779,-500.0,0.00054794,120]
[321392005,1712115047788,-516.81378437,0.00054794,120]
[321392006,1712115047797,-150.0,0.00054794,120]
[321392007,1712115047807,-500.0,0.00054794,120]
[321392008,1712115047818,-642.05,0.00054794,120]
[321392009,1712115047827,-500.0,0.00054794,120]
[321392010,1712115047837,-280.20820633,0.00054794,120]
[321392011,1712115047847,-500.0,0.00054794,120]
[321392012,1712115047857,-513.30508126,0.00054794,120]
[321392013,1712115047868,-500.0,0.00054794,120]
[321392014,1712115047878,-515.9848065,0.00054794,120]
[321392015,1712115047889,-463.95177171,0.00054794,120]
[321392016,1712115047899,-500.0,0.00054794,120]
[321392017,1712115047909,-500.0,0.00054794,120]
[321392018,1712115047919,-500.0,0.00054794,120]
[321392019,1712115047929,-500.0,0.00054794,120]
[321392020,1712115047939,-1000.0,0.00054794,120]
[321392021,1712115047949,-500.0,0.00054794,120]
[321392022,1712115047959,-500.0,0.00054794,120]
[321392023,1712115047969,-2624.53,0.00054794,120]
[321392024,1712115047979,-621.09,0.00054794,120]
[321392025,1712115047992,-500.0,0.00054794,120]
[321392026,1712115048002,-500.0,0.00054794,120]
[321392027,1712115048011,-500.0,0.00054794,120]
[321392028,1712115048021,-500.0,0.00054794,120]
[321392029,1712115048031,-500.0,0.00054794,120]
[321392030,1712115048041,-505.12076657,0.00054794,120]
[321392031,1712115048050,-500.0,0.00054794,120]
[321392032,1712115048060,-500.0,0.00054794,120]
[321392033,1712115048070,-500.0,0.00054794,120]
[321392034,1712115048079,-500.0,0.00054794,120]
[321392035,1712115048089,-155.63632697,0.00054794,30]
[321392036,1712115048098,-500.0,0.00054794,120]
[321392037,1712115048108,-500.0,0.00054794,120]
[321392038,1712115048118,-500.0,0.00054794,120]
[321392039,1712115048128,-500.0,0.00054794,120]
[321392040,1712115048138,-549.94,0.00054794,120]
[321392041,1712115048147,-500.0,0.00054794,120]
[321392042,1712115048157,-646.56,0.00054794,120]
[321392043,1712115048168,-500.0,0.00054794,120]
[321392044,1712115048184,-500.0,0.00054794,120]
[321392045,1712115048194,-500.0,0.00054794,120]
[321392046,1712115048204,-500.0,0.00054794,120]
[321392047,1712115048214,-500.0,0.00054794,120]
[321392048,1712115048225,-747.23,0.00054794,120]
[321392049,1712115048235,-500.0,0.00054794,120]
[321392050,1712115048245,-500.0,0.00054794,120]
[321392051,1712115048256,-500.0,0.00054794,120]
[321392052,1712115048267,-500.0,0.00054794,120]
[321392053,1712115048277,-816.6,0.00054794,120]
[321392054,1712115048286,-500.0,0.00054794,120]
[321392055,1712115048296,-500.0,0.00054794,120]
[321392056,1712115048306,-500.0,0.00054794,120]
[321392057,1712115048316,-500.0,0.00054794,120]
[321392058,1712115048326,-511.48902047,0.00054794,120]
[321392059,1712115048336,-500.0,0.00054794,120]
[321392060,1712115048346,-500.0,0.00054794,120]
[321392061,1712115048356,-500.0,0.00054794,120]
[321392062,1712115048366,-517.49275495,0.00054794,120]
[321392063,1712115048375,-548.23522186,0.00054794,120]
[321392064,1712115048385,-775.60975504,0.00054794,2]
[321392065,1712115049684,-323.37009638,0.0003,4]
[321392066,1712115049703,-554.18566314,0.0003,4]
[321392067,1712115049722,-722.42054295,0.0003,4]
[321392068,1712115049732,-500.0,0.0004474,2]
[321392069,1712115049741,-112.50575058,0.00046973,2]
[321392070,1712115049756,-497.64643951,0.00046973,2]
[321392071,1712115134321,550.0,0.00025,3]
[321392072,1712115776733,1029.0,0.00042142,30]
[321392073,1712115787867,1029.0,0.00042142,30]
[321392074,1712115854062,-500.0,0.00023912,2]
[321392075,1712115854090,-1926.21593377,0.00023913,2]
[321392076,1712115854120,-168.62837765,0.00023915,2]
[321392077,1712115854150,-209.03,0.00024015,2]
[321392078,1712115854178,-3427.6941845,0.00024997,2]
[321392079,1712115854207,-22857.77247122,0.00024999,2]
[321392080,1712115854234,-1129.81835579,0.00024999,2]
[321392081,1712115877186,-1926.21593377,0.00025932,2]
[321392082,1712115877215,-500.0,0.00025932,2]
[321392083,1712115877245,-26547.6,0.00025933,2]
[321392084,1712115877273,-209.03,0.00026279,2]
[321392085,1712115886474,-600.0,0.00027,3]
[321392086,1712116046186,-500.0,0.00027999,2]
[321392087,1712116046205,-331.57746776,0.00028,2]
[321392104,1712116232140,-352.00002033,0.00027999,2]
[321392105,1712116232246,-147.99997967,0.00027999,2]
[321392106,1712116232257,-64.73,0.00028,2]
[321392107,1712116232268,-155.0,0.00028,2]
[321392108,1712116232277,-532.27002033,0.00028542,2]
[321392109,1712116232468,-122.16632393,0.00028542,2]
[321392110,1712116232477,-150.99,0.00028543,2]
[321392111,1712116232487,-56.46221419,0.00029,3]
[321392112,1712116232535,-314.26899999,0.00029,3]
[321392163,1712116238008,-279.26878582,0.00029,3]
[321392165,1712116238019,-560.58443518,0.00029997,2]
[321392167,1712116238028,-1185.80103298,0.00029998,2]
[321392170,1712116238040,-1036.24451051,0.00029998,2]
[321392174,1712116238076,-417.43522429,0.00029998,2]
[321392176,1712116238084,-220.81535049,0.00029999,2]
[321392188,1712116238183,-2125.03255867,0.00029999,2]
[321392191,1712116238196,-12405.42063959,0.00029999,2]
[321392193,1712116238205,-405.14841286,0.0003,4]
[321392195,1712116238214,-19289.64853053,0.0003,4]
[321392196,1712116238223,-155.0,0.0003,2]
[321392198,1712116238233,-3205.84389542,0.0003,2]
[321392200,1712116238242,-57056.886,0.0003,2]
[321392203,1712116238252,-499.99,0.0003,2]
[321392204,1712116238261,-395.39,0.0003,2]
[321392206,1712116238272,-499.99,0.0003,2]
[321392209,1712116238282,-9334.65,0.0003,2]
[321392211,1712116238291,-999.99,0.0003,2]
[321392212,1712116238300,-3301.2,0.0003,2]
[321392215,1712116238309,-4908.52,0.00030707,2]
[321392217,1712116238319,-19999.99,0.00030707,2]
[321392219,1712116238329,-700.0,0.00031,3]
[321392221,1712116238338,-180.0,0.00031342,2]
[321392222,1712116238348,-168.62837762,0.00031356,2]
[321392224,1712116238357,-1000.0,0.000329,2]
[321392227,1712116238366,-750.0,0.00033,3]
[321392229,1712116238375,-9053.58976532,0.000348,4]
[321392231,1712116238384,-1164.25895106,0.000348,2]
[321392233,1712116238394,-773.48040475,0.000349,2]
[321392235,1712116238403,-800.0,0.00035,3]
[321392237,1712116238412,-1281.21723531,0.00035,4]
[321392240,1712116238421,-9102.803,0.00036429,2]
[321392242,1712116238431,-833.8294,0.00036594,2]
[321392244,1712116238440,-850.0,0.00037,3]
[321392246,1712116238449,-1164.25895105,0.00037224,2]
[321392248,1712116238458,-773.48040469,0.00037312,2]